[Event "FIDE U16 Olympiad_boards_1-80"]
[Site "Eindhoven, Netherlands"]
[Date "2023.08.14"]
[Round "3.10"]
[White "Han, Johnathan"]
[Black "De Winter, Arthur"]
[Result "0-1"]
[TimeControl "2700+10"]
[WhiteElo "2199"]
[BlackElo "2360"]

1. e4 {[%clk 00:45:17]} {[%emt 00:00:02]} c5 {[%clk 00:45:18]} {[%emt
00:00:03]} 2. Nf3 {[%clk 00:45:24]} {[%emt 00:00:03]} d6 {[%clk 00:45:26]}
{[%emt 00:00:02]} 3. d4 {[%clk 00:45:32]} {[%emt 00:00:02]} cxd4 {[%clk
00:45:34]} {[%emt 00:00:02]} 4. Nxd4 {[%clk 00:45:39]} {[%emt 00:00:03]} Nf6
{[%clk 00:45:42]} {[%emt 00:00:02]} 5. Nc3 {[%clk 00:45:45]} {[%emt 00:00:04]}
a6 {[%clk 00:45:49]} {[%emt 00:00:01]} 6. Bg5 {[%clk 00:45:43]} {[%emt
00:00:13]} Nbd7 {[%clk 00:45:57]} {[%emt 00:00:03]} 7. Qe2 {[%clk 00:45:36]}
{[%emt 00:00:17]} Qa5 {[%clk 00:46:04]} {[%emt 00:00:02]} 8. Bd2 {[%clk
00:44:24]} {[%emt 00:01:22]} h5 {[%clk 00:46:12]} {[%emt 00:00:03]} 9. O-O-O
{[%clk 00:42:23]} {[%emt 00:02:10]} b5 {[%clk 00:46:19]} {[%emt 00:00:04]} 10.
Nb3 {[%clk 00:38:58]} {[%emt 00:03:35]} Qc7 {[%clk 00:45:29]} {[%emt 00:00:59]}
11. a3 {[%clk 00:37:31]} {[%emt 00:01:37]} Bb7 {[%clk 00:43:47]} {[%emt
00:01:53]} 12. g3 {[%clk 00:35:56]} {[%emt 00:01:45]} g6 {[%clk 00:32:40]}
{[%emt 00:11:18]} 13. Bg2 {[%clk 00:35:09]} {[%emt 00:00:56]} Bg7 {[%clk
00:32:41]} {[%emt 00:00:07]} 14. f4 {[%clk 00:35:12]} {[%emt 00:00:08]} e5
{[%clk 00:32:23]} {[%emt 00:00:29]} 15. Kb1 {[%clk 00:32:30]} {[%emt 00:02:51]}
exf4 {[%clk 00:29:31]} {[%emt 00:03:02]} 16. Nd5 {[%clk 00:28:36]} {[%emt
00:04:04]} Bxd5 {[%clk 00:27:35]} {[%emt 00:02:07]} 17. exd5+ {[%clk 00:28:36]}
{[%emt 00:00:10]} Kf8 {[%clk 00:27:43]} {[%emt 00:00:01]} 18. gxf4 {[%clk
00:27:59]} {[%emt 00:00:47]} Kg8 {[%clk 00:25:28]} {[%emt 00:02:25]} 19. Ba5
{[%clk 00:24:56]} {[%emt 00:03:14]} Qb7 {[%clk 00:24:29]} {[%emt 00:01:09]} 20.
Rhe1 {[%clk 00:24:19]} {[%emt 00:00:47]} Re8 {[%clk 00:23:45]} {[%emt
00:00:53]} 21. Qf1 {[%clk 00:22:35]} {[%emt 00:01:54]} Kh7 {[%clk 00:23:18]}
{[%emt 00:00:37]} 22. Nd4 {[%clk 00:22:11]} {[%emt 00:00:34]} Ng4 {[%clk
00:22:19]} {[%emt 00:01:10]} 23. Ne6 {[%clk 00:19:05]} {[%emt 00:03:16]} fxe6
{[%clk 00:20:31]} {[%emt 00:01:58]} 24. dxe6 {[%clk 00:19:10]} {[%emt
00:00:05]} Qa7 {[%clk 00:20:26]} {[%emt 00:00:14]} 25. exd7 {[%clk 00:19:08]}
{[%emt 00:00:13]} Qxd7 {[%clk 00:19:40]} {[%emt 00:00:56]} 26. Be4 {[%clk
00:18:33]} {[%emt 00:00:45]} Rhf8 {[%clk 00:19:14]} {[%emt 00:00:35]} 27. Qd3
{[%clk 00:17:40]} {[%emt 00:01:03]} Rxe4 {[%clk 00:19:19]} {[%emt 00:00:05]} 28.
Qxe4 {[%clk 00:15:51]} {[%emt 00:01:59]} Nf2 {[%clk 00:19:28]} {[%emt
00:00:02]} 29. Qf3 {[%clk 00:14:38]} {[%emt 00:01:22]} Nxd1 {[%clk 00:19:34]}
{[%emt 00:00:04]} 30. Rxd1 {[%emt 00:03:05]} Rf5 {[%clk 00:16:42]} 31. Bb4
{[%clk 00:13:07]} {[%emt 00:01:48]} Be5 {[%clk 00:15:21]} {[%emt 00:01:31]} 32.
Bd2 {[%clk 00:11:28]} {[%emt 00:01:50]} Qf7 {[%clk 00:14:54]} {[%emt 00:00:36]}
33. Qd3 {[%clk 00:10:12]} {[%emt 00:01:27]} Bxf4 {[%clk 00:13:32]} {[%emt
00:01:32]} 34. Bxf4 {[%clk 00:10:10]} {[%emt 00:00:12]} Rxf4 {[%clk 00:13:40]}
35. Qxd6 {[%clk 00:10:15]} {[%emt 00:00:05]} Qf6 {[%clk 00:09:43]} {[%emt
00:04:07]} 36. Qc7+ {[%clk 00:08:25]} {[%emt 00:02:01]} Kh6 {[%clk 00:09:49]}
{[%emt 00:00:04]} 37. Rd6 {[%clk 00:07:37]} {[%emt 00:00:57]} Rf1+ {[%clk
00:08:03]} {[%emt 00:01:56]} 38. Ka2 {[%clk 00:07:45]} {[%emt 00:00:02]} Qf4
{[%clk 00:08:12]} {[%emt 00:00:01]} 39. h3 {[%clk 00:04:29]} {[%emt 00:03:27]}
Rf2 {[%clk 00:06:40]} {[%emt 00:01:40]} 40. Qc5 {[%clk 00:03:38]} {[%emt
00:01:02]} a5 {[%clk 00:05:55]} {[%emt 00:00:56]} 41. Rd8 {[%clk 00:02:10]}
{[%emt 00:01:37]} Qc4+ {[%clk 00:04:18]} {[%emt 00:01:47]} 42. Qxc4 {[%clk
00:02:17]} {[%emt 00:00:04]} bxc4 {[%clk 00:04:27]} 43. c3 {[%clk 00:01:54]}
{[%emt 00:00:33]} Rh2 {[%clk 00:04:16]} {[%emt 00:00:21]} 44. Rh8+ {[%clk
00:01:26]} {[%emt 00:00:38]} Kg5 {[%clk 00:02:45]} {[%emt 00:01:41]} 45. Ra8
{[%clk 00:01:34]} {[%emt 00:00:02]} Rxh3 {[%clk 00:02:21]} {[%emt 00:00:34]} 46.
Rxa5+ {[%clk 00:01:41]} {[%emt 00:00:03]} Kh4 {[%clk 00:01:21]} {[%emt
00:01:11]} 47. Rc5 {[%clk 00:01:14]} {[%emt 00:00:37]} g5 {[%clk 00:00:58]}
{[%emt 00:00:33]} 48. a4 {[%clk 00:00:54]} {[%emt 00:00:29]} Rd3 {[%clk
00:00:26]} {[%emt 00:00:42]} 49. a5 {[%clk 00:00:43]} {[%emt 00:00:22]} g4
{[%clk 00:00:29]} {[%emt 00:00:07]} 50. Rxc4 {[%clk 00:00:36]} {[%emt
00:00:17]} Kg3 {[%clk 00:00:20]} {[%emt 00:00:19]} 51. Rd4 {[%clk 00:00:26]}
{[%emt 00:00:20]} Re3 {[%clk 00:00:20]} {[%emt 00:00:10]} 52. a6 {[%clk
00:00:26]} {[%emt 00:00:10]} h4 {[%clk 00:00:15]} {[%emt 00:00:15]} 53. Rd8
{[%clk 00:00:17]} {[%emt 00:00:18]} Re6 {[%clk 00:00:18]} {[%emt 00:00:07]} 54.
Ra8 {[%clk 00:00:12]} {[%emt 00:00:15]} h3 {[%clk 00:00:27]} {[%emt 00:00:01]}
55. b4 {[%clk 00:00:13]} {[%emt 00:00:10]} h2 {[%clk 00:00:33]} {[%emt
00:00:04]} 56. Rh8 {[%clk 00:00:15]} {[%emt 00:00:08]} Rxa6+ {[%clk 00:00:41]}
{[%emt 00:00:02]} 57. Kb3 {[%clk 00:00:20]} {[%emt 00:00:05]} Ra1 {[%clk
00:00:29]} {[%emt 00:00:22]} 58. b5 {[%clk 00:00:18]} {[%emt 00:00:12]} h1=Q
{[%clk 00:00:28]} {[%emt 00:00:11]} 59. Rxh1 {[%clk 00:00:21]} Rxh1 {[%clk
00:00:36]} {[%emt 00:00:08]} 60. c4 {[%clk 00:00:17]} {[%emt 00:00:14]} Kf4
{[%clk 00:00:42]} {[%emt 00:00:05]} 61. c5 {[%clk 00:00:16]} {[%emt 00:00:11]}
Rb1+ {[%clk 00:00:50]} {[%emt 00:00:02]} 62. Kc4 {[%clk 00:00:23]} {[%emt
00:00:03]} g3 {[%clk 00:00:58]} {[%emt 00:00:02]} 63. Kd4 {[%emt 00:00:05]} 0-1

[Event "FIDE U16 Olympiad_boards_1-80"]
[Site "Eindhoven, Netherlands"]
[Date "2023.08.14"]
[Round "3.11"]
[White "Kumar, Prajit Sai"]
[Black "Chen, Max"]
[Result "0-1"]
[TimeControl "2700+10"]
[WhiteElo "2160"]
[BlackElo "2049"]

1. d4 {[%clk 00:45:19]} Nf6 {[%clk 00:45:17]} {[%emt 00:00:04]} 2. Nf3 {[%clk
00:45:27]} {[%emt 00:00:01]} b6 {[%clk 00:45:12]} {[%emt 00:00:17]} 3. Bg5
{[%clk 00:45:23]} {[%emt 00:00:12]} e6 {[%clk 00:45:15]} {[%emt 00:00:07]} 4.
Nbd2 {[%clk 00:45:23]} {[%emt 00:00:10]} h6 {[%clk 00:45:13]} {[%emt 00:00:12]}
5. Bh4 {[%clk 00:44:53]} {[%emt 00:00:40]} Bb7 {[%clk 00:45:11]} {[%emt
00:00:12]} 6. e3 {[%clk 00:44:34]} {[%emt 00:00:29]} d6 {[%clk 00:43:06]}
{[%emt 00:02:16]} 7. Bd3 {[%clk 00:42:53]} {[%emt 00:01:50]} g5 {[%clk
00:41:30]} {[%emt 00:01:45]} 8. Bg3 {[%clk 00:43:01]} {[%emt 00:00:03]} Nh5
{[%clk 00:41:36]} {[%emt 00:00:03]} 9. e4 {[%clk 00:41:00]} {[%emt 00:02:11]}
Bg7 {[%clk 00:40:09]} {[%emt 00:01:38]} 10. c3 {[%clk 00:40:44]} {[%emt
00:00:26]} Nd7 {[%clk 00:39:09]} {[%emt 00:01:10]} 11. Nc4 {[%clk 00:39:47]}
{[%emt 00:01:06]} Qe7 {[%clk 00:37:26]} {[%emt 00:01:54]} 12. Qe2 {[%clk
00:37:42]} {[%emt 00:02:15]} e5 {[%clk 00:33:27]} {[%emt 00:04:08]} 13. Ne3
{[%clk 00:34:08]} {[%emt 00:03:45]} Qf6 {[%clk 00:25:39]} {[%emt 00:07:59]} 14.
Nf5 {[%clk 00:27:53]} {[%emt 00:06:23]} O-O-O {[%clk 00:22:57]} {[%emt
00:02:53]} 15. dxe5 {[%clk 00:24:42]} {[%emt 00:03:21]} dxe5 {[%clk 00:19:59]}
{[%emt 00:03:08]} 16. Ba6 {[%clk 00:23:54]} {[%emt 00:00:58]} Nf4 {[%clk
00:19:48]} {[%emt 00:00:21]} 17. Bxf4 {[%clk 00:23:30]} {[%emt 00:00:33]} exf4
{[%clk 00:19:35]} {[%emt 00:00:23]} 18. Bxb7+ {[%clk 00:23:12]} {[%emt
00:00:29]} Kxb7 {[%clk 00:19:41]} {[%emt 00:00:04]} 19. O-O-O {[%clk 00:21:23]}
{[%emt 00:01:59]} Rhe8 {[%clk 00:17:49]} {[%emt 00:02:03]} 20. Qc4 {[%clk
00:19:34]} {[%emt 00:01:58]} Bf8 {[%clk 00:16:22]} {[%emt 00:01:38]} 21. Rd2
{[%clk 00:13:25]} {[%emt 00:06:19]} Nc5 {[%clk 00:13:49]} {[%emt 00:02:43]} 22.
Re1 {[%clk 00:11:25]} {[%emt 00:02:09]} Qe6 {[%clk 00:12:15]} {[%emt 00:01:44]}
23. Qxe6 {[%clk 00:05:47]} {[%emt 00:05:48]} fxe6 {[%clk 00:12:20]} {[%emt
00:00:05]} 24. N5d4 {[%clk 00:04:40]} {[%emt 00:01:17]} e5 {[%clk 00:10:57]}
{[%emt 00:01:33]} 25. b4 {[%clk 00:04:42]} {[%emt 00:00:08]} exd4 {[%clk
00:06:43]} {[%emt 00:04:25]} 26. bxc5 {[%clk 00:04:50]} {[%emt 00:00:01]} dxc3
{[%clk 00:06:48]} {[%emt 00:00:05]} 27. Rxd8 {[%clk 00:04:58]} {[%emt
00:00:02]} Rxd8 {[%clk 00:06:57]} {[%emt 00:00:01]} 28. cxb6 {[%clk 00:05:06]}
{[%emt 00:00:03]} cxb6 {[%clk 00:06:55]} {[%emt 00:00:12]} 29. Kc2 {[%clk
00:02:35]} {[%emt 00:02:41]} a5 {[%clk 00:04:07]} {[%emt 00:02:57]} 30. Re2
{[%clk 00:02:31]} {[%emt 00:00:13]} Bb4 {[%clk 00:03:45]} {[%emt 00:00:33]} 31.
h3 {[%clk 00:02:06]} {[%emt 00:00:35]} a4 {[%clk 00:03:14]} {[%emt 00:00:41]}
32. e5 {[%clk 00:02:10]} {[%emt 00:00:06]} b5 {[%clk 00:02:16]} {[%emt
00:01:08]} 33. e6 {[%clk 00:02:08]} {[%emt 00:00:12]} Kc6 {[%clk 00:01:03]}
{[%emt 00:01:24]} 34. e7 {[%clk 00:01:22]} {[%emt 00:00:56]} Re8 {[%clk
00:01:11]} {[%emt 00:00:02]} 35. Nd4+ {[%clk 00:01:27]} {[%emt 00:00:05]} Kc5
{[%clk 00:00:18]} {[%emt 00:01:03]} 36. Kd3 {[%clk 00:00:47]} {[%emt 00:00:49]}
Kd5 {[%clk 00:00:13]} {[%emt 00:00:16]} 37. Nxb5 {[%clk 00:00:45]} {[%emt
00:00:12]} Kc6 {[%clk 00:00:11]} {[%emt 00:00:12]} 38. Nxc3 {[%clk 00:00:36]}
{[%emt 00:00:18]} Bxe7 {[%clk 00:00:15]} {[%emt 00:00:07]} 39. Nxa4 {[%clk
00:00:28]} {[%emt 00:00:18]} Rd8+ {[%clk 00:00:15]} {[%emt 00:00:10]} 40. Kc4
{[%clk 00:00:37]} {[%emt 00:00:01]} Bd6 {[%clk 00:00:15]} {[%emt 00:00:10]} 41.
f3 {[%clk 00:00:25]} {[%emt 00:00:21]} Rc8 {[%clk 00:00:13]} {[%emt 00:00:13]}
42. Nc3 {[%clk 00:00:29]} {[%emt 00:00:06]} Kd7+ {[%clk 00:00:16]} {[%emt
00:00:07]} 43. Kd3 {[%clk 00:00:25]} {[%emt 00:00:13]} Ra8 {[%clk 00:00:13]}
{[%emt 00:00:14]} 44. Nd5 {[%clk 00:00:17]} {[%emt 00:00:17]} Kc6 {[%clk
00:00:15]} {[%emt 00:00:08]} 45. Nf6 {[%clk 00:00:18]} {[%emt 00:00:10]} Ra4
{[%clk 00:00:12]} {[%emt 00:00:13]} 46. Re6 {[%clk 00:00:18]} {[%emt 00:00:09]}
Ra3+ {[%clk 00:00:13]} {[%emt 00:00:10]} 47. Kd4 {[%emt 00:00:23]} 0-1

[Event "FIDE U16 Olympiad_boards_1-80"]
[Site "Eindhoven, Netherlands"]
[Date "2023.08.14"]
[Round "3.12"]
[White "Jiang, Kate Yuhua"]
[Black "Verheij, Dana"]
[Result "0-1"]
[TimeControl "2700+10"]
[WhiteElo "1770"]
[BlackElo "1829"]

1. e4 {[%clk 00:45:17]} {[%emt 00:00:02]} c5 {[%clk 00:45:19]} {[%emt
00:00:01]} 2. c3 {[%clk 00:45:25]} {[%emt 00:00:02]} Nf6 {[%clk 00:45:26]}
{[%emt 00:00:04]} 3. e5 {[%clk 00:45:34]} {[%emt 00:00:01]} Nd5 {[%clk
00:45:34]} {[%emt 00:00:02]} 4. Nf3 {[%clk 00:45:41]} {[%emt 00:00:02]} d6
{[%clk 00:45:34]} {[%emt 00:00:10]} 5. exd6 {[%clk 00:45:46]} {[%emt 00:00:05]}
e6 {[%clk 00:45:40]} {[%emt 00:00:04]} 6. g3 {[%clk 00:43:47]} {[%emt
00:02:10]} Bxd6 {[%clk 00:45:42]} {[%emt 00:00:08]} 7. Bg2 {[%clk 00:43:49]}
{[%emt 00:00:08]} Nc6 {[%clk 00:45:15]} {[%emt 00:00:36]} 8. O-O {[%clk
00:43:19]} {[%emt 00:00:40]} O-O {[%clk 00:45:12]} {[%emt 00:00:13]} 9. d4
{[%clk 00:43:16]} {[%emt 00:00:14]} cxd4 {[%clk 00:45:16]} {[%emt 00:00:06]} 10.
Nxd4 {[%clk 00:43:15]} {[%emt 00:00:11]} Nxd4 {[%clk 00:44:39]} {[%emt
00:00:47]} 11. Qxd4 {[%clk 00:43:08]} {[%emt 00:00:17]} Qc7 {[%clk 00:44:10]}
{[%emt 00:00:39]} 12. Re1 {[%clk 00:25:03]} {[%emt 00:18:15]} Bd7 {[%clk
00:40:23]} {[%emt 00:03:57]} 13. c4 {[%clk 00:21:31]} {[%emt 00:03:42]} Nf6
{[%clk 00:35:54]} {[%emt 00:04:38]} 14. Nc3 {[%clk 00:18:29]} {[%emt 00:03:13]}
Rfd8 {[%clk 00:29:36]} {[%emt 00:06:26]} 15. Bg5 {[%clk 00:17:06]} {[%emt
00:01:34]} Be7 {[%clk 00:26:37]} {[%emt 00:03:09]} 16. Bf4 {[%clk 00:16:05]}
{[%emt 00:01:11]} Qc8 {[%clk 00:23:07]} {[%emt 00:03:40]} 17. Qe5 {[%clk
00:07:56]} {[%emt 00:08:19]} Bc6 {[%clk 00:19:36]} {[%emt 00:03:41]} 18. b3
{[%clk 00:05:05]} {[%emt 00:03:01]} Bxg2 {[%clk 00:18:32]} {[%emt 00:01:14]} 19.
Kxg2 {[%clk 00:05:14]} {[%emt 00:00:02]} Qc6+ {[%clk 00:17:11]} {[%emt
00:01:31]} 20. f3 {[%clk 00:04:10]} {[%emt 00:01:14]} Bc5 {[%clk 00:13:23]}
{[%emt 00:03:57]} 21. Be3 {[%clk 00:02:08]} {[%emt 00:02:12]} Bb4 {[%clk
00:11:07]} {[%emt 00:02:25]} 22. Rac1 {[%clk 00:00:44]} {[%emt 00:01:35]} Rd3
{[%clk 00:10:15]} {[%emt 00:01:02]} 23. Re2 {[%clk 00:00:15]} {[%emt 00:00:39]}
Nd7 {[%clk 00:08:58]} {[%emt 00:01:27]} 24. Qe4 {[%clk 00:00:11]} {[%emt
00:00:15]} Rxc3 {[%clk 00:08:50]} {[%emt 00:00:17]} 25. Rxc3 {[%clk 00:00:11]}
{[%emt 00:00:10]} Bxc3 {[%clk 00:08:59]} {[%emt 00:00:02]} 26. Qd3 {[%clk
00:00:11]} {[%emt 00:00:10]} Bf6 {[%clk 00:08:46]} {[%emt 00:00:21]} 27. Bf4
{[%clk 00:00:12]} {[%emt 00:00:10]} Rd8 {[%clk 00:08:19]} {[%emt 00:00:36]} 28.
Qe3 {[%clk 00:00:11]} {[%emt 00:00:12]} e5 {[%clk 00:07:54]} {[%emt 00:00:34]}
29. Bg5 {[%clk 00:00:17]} {[%emt 00:00:05]} Bxg5 {[%clk 00:07:50]} {[%emt
00:00:13]} 30. Qxg5 {[%clk 00:00:26]} {[%emt 00:00:02]} Qf6 {[%clk 00:07:50]}
{[%emt 00:00:10]} 31. Qe3 {[%clk 00:00:33]} {[%emt 00:00:03]} b6 {[%clk
00:07:17]} {[%emt 00:00:42]} 32. b4 {[%clk 00:00:30]} {[%emt 00:00:14]} h6
{[%clk 00:07:17]} {[%emt 00:00:11]} 33. Qe4 {[%clk 00:00:32]} {[%emt 00:00:08]}
Nf8 {[%clk 00:07:09]} {[%emt 00:00:18]} 34. c5 {[%clk 00:00:12]} {[%emt
00:00:30]} Ne6 {[%clk 00:06:41]} {[%emt 00:00:37]} 35. cxb6 {[%clk 00:00:11]}
{[%emt 00:00:11]} axb6 {[%clk 00:06:48]} {[%emt 00:00:03]} 36. Rf2 {[%clk
00:00:12]} {[%emt 00:00:09]} Rd4 {[%clk 00:06:38]} {[%emt 00:00:20]} 37. Qa8+
{[%clk 00:00:12]} {[%emt 00:00:11]} Kh7 {[%clk 00:06:46]} {[%emt 00:00:01]} 38.
a3 {[%clk 00:00:15]} {[%emt 00:00:06]} Nc7 {[%clk 00:06:41]} {[%emt 00:00:15]}
39. Qb7 {[%clk 00:00:17]} {[%emt 00:00:09]} Nd5 {[%clk 00:06:42]} {[%emt
00:00:09]} 40. h3 {[%clk 00:00:20]} {[%emt 00:00:08]} Ne3+ {[%clk 00:06:35]}
{[%emt 00:00:17]} 41. Kh2 {[%clk 00:00:27]} {[%emt 00:00:03]} Nc4 {[%clk
00:06:02]} {[%emt 00:00:42]} 42. a4 {[%clk 00:00:18]} {[%emt 00:00:20]} Qf5
{[%clk 00:05:59]} {[%emt 00:00:12]} 43. Qc6 {[%clk 00:00:12]} {[%emt 00:00:16]}
Qe6 {[%clk 00:05:37]} {[%emt 00:00:31]} 44. Qa8 {[%clk 00:00:11]} {[%emt
00:00:12]} Qd5 {[%clk 00:05:11]} {[%emt 00:00:36]} 45. Qc8 {[%emt 00:00:36]}
Rd2 {[%clk 00:04:54]} 46. Rxd2 {[%clk 00:00:00]} {[%emt 00:00:12]} Qxd2+ {[%clk
00:04:54]} {[%emt 00:00:02]} 0-1

[Event "FIDE U16 Olympiad_boards_1-80"]
[Site "Eindhoven, Netherlands"]
[Date "2023.08.14"]
[Round "3.13"]
[White "Gurel, Ediz"]
[Black "Piliposyan, Robert"]
[Result "1-0"]
[TimeControl "2700+10"]
[WhiteElo "2302"]
[BlackElo "2265"]

1. e4 {[%clk 00:45:17]} {[%emt 00:00:02]} e5 {[%clk 00:45:18]} {[%emt
00:00:02]} 2. Nf3 {[%clk 00:45:24]} {[%emt 00:00:04]} Nc6 {[%clk 00:45:25]}
{[%emt 00:00:02]} 3. Bb5 {[%clk 00:45:31]} {[%emt 00:00:03]} a6 {[%clk
00:45:33]} {[%emt 00:00:02]} 4. Ba4 {[%clk 00:45:40]} {[%emt 00:00:02]} Nf6
{[%clk 00:45:40]} {[%emt 00:00:02]} 5. O-O {[%clk 00:45:47]} {[%emt 00:00:03]}
Be7 {[%clk 00:45:49]} {[%emt 00:00:02]} 6. Bxc6 {[%clk 00:45:50]} {[%emt
00:00:07]} dxc6 {[%clk 00:45:57]} {[%emt 00:00:02]} 7. d3 {[%clk 00:45:59]} Bd6
{[%clk 00:45:57]} {[%emt 00:00:10]} 8. Nbd2 {[%clk 00:46:06]} {[%emt 00:00:03]}
Be6 {[%clk 00:45:21]} {[%emt 00:00:45]} 9. d4 {[%clk 00:46:14]} {[%emt
00:00:03]} Nd7 {[%clk 00:45:28]} {[%emt 00:00:03]} 10. dxe5 {[%clk 00:46:22]}
{[%emt 00:00:02]} Nxe5 {[%clk 00:45:35]} {[%emt 00:00:02]} 11. Nxe5 {[%clk
00:46:31]} {[%emt 00:00:02]} Bxe5 {[%clk 00:45:43]} {[%emt 00:00:02]} 12. f4
{[%clk 00:46:40]} {[%emt 00:00:01]} Bd4+ {[%clk 00:45:33]} {[%emt 00:00:20]} 13.
Kh1 {[%clk 00:46:49]} {[%emt 00:00:01]} f5 {[%clk 00:45:21]} {[%emt 00:00:22]}
14. c3 {[%clk 00:43:33]} {[%emt 00:03:26]} Bc5 {[%clk 00:40:38]} {[%emt
00:04:53]} 15. exf5 {[%clk 00:41:50]} {[%emt 00:01:53]} Bxf5 {[%clk 00:38:07]}
{[%emt 00:02:41]} 16. Re1+ {[%clk 00:41:33]} {[%emt 00:00:27]} Be7 {[%clk
00:38:09]} {[%emt 00:00:08]} 17. Qe2 {[%clk 00:38:55]} {[%emt 00:02:48]} Kf7
{[%clk 00:33:46]} {[%emt 00:04:32]} 18. Nf3 {[%clk 00:37:19]} {[%emt 00:01:46]}
Re8 {[%clk 00:30:00]} {[%emt 00:03:56]} 19. g4 {[%clk 00:31:06]} {[%emt
00:06:24]} Bc8 {[%clk 00:26:11]} {[%emt 00:03:59]} 20. f5 {[%clk 00:29:28]}
{[%emt 00:01:48]} Bf6 {[%clk 00:22:30]} {[%emt 00:03:51]} 21. Qxe8+ {[%clk
00:25:20]} {[%emt 00:04:17]} Qxe8 {[%clk 00:22:38]} {[%emt 00:00:02]} 22. Rxe8
{[%clk 00:25:29]} {[%emt 00:00:02]} Kxe8 {[%clk 00:22:47]} {[%emt 00:00:01]} 23.
Bf4 {[%clk 00:25:36]} {[%emt 00:00:03]} c5 {[%clk 00:21:29]} {[%emt 00:01:29]}
24. Re1+ {[%clk 00:24:20]} {[%emt 00:01:25]} Kf8 {[%clk 00:19:12]} {[%emt
00:02:27]} 25. Bxc7 {[%clk 00:24:05]} {[%emt 00:00:25]} b5 {[%clk 00:15:47]}
{[%emt 00:03:34]} 26. Bd6+ {[%clk 00:23:38]} {[%emt 00:00:37]} Kf7 {[%clk
00:15:51]} {[%emt 00:00:07]} 27. Bxc5 {[%clk 00:22:29]} {[%emt 00:01:19]} Bb7
{[%clk 00:15:59]} {[%emt 00:00:02]} 28. Kg2 {[%emt 00:01:08]} h5 {[%clk
00:15:03]} 29. Kg3 {[%clk 00:18:51]} {[%emt 00:03:56]} hxg4 {[%clk 00:14:53]}
{[%emt 00:00:19]} 30. Ne5+ {[%clk 00:16:20]} {[%emt 00:02:41]} Bxe5+ {[%clk
00:13:27]} {[%emt 00:01:37]} 31. Rxe5 {[%clk 00:16:29]} Re8 {[%clk 00:12:58]}
{[%emt 00:00:38]} 32. Rxe8 {[%clk 00:16:38]} {[%emt 00:00:02]} Kxe8 {[%clk
00:13:07]} {[%emt 00:00:01]} 33. Kxg4 {[%clk 00:16:45]} {[%emt 00:00:02]} Be4
{[%clk 00:12:34]} {[%emt 00:00:41]} 34. Kf4 {[%clk 00:15:42]} {[%emt 00:01:15]}
Bb1 {[%clk 00:12:42]} {[%emt 00:00:02]} 35. a3 {[%clk 00:15:51]} {[%emt
00:00:02]} Bc2 {[%clk 00:09:00]} {[%emt 00:03:52]} 36. b4 {[%clk 00:12:32]}
{[%emt 00:03:29]} Kf7 {[%clk 00:09:02]} {[%emt 00:00:08]} 37. Ke5 {[%clk
00:12:38]} {[%emt 00:00:03]} Bd3 {[%clk 00:09:01]} {[%emt 00:00:11]} 38. h4
{[%clk 00:12:32]} {[%emt 00:00:16]} Bc2 {[%clk 00:08:55]} {[%emt 00:00:16]} 39.
Be3 {[%clk 00:12:38]} {[%emt 00:00:04]} Bd1 {[%clk 00:07:54]} {[%emt 00:01:11]}
40. Bg5 {[%clk 00:11:52]} {[%emt 00:00:57]} Be2 {[%clk 00:05:23]} {[%emt
00:02:41]} 41. f6 {[%clk 00:08:50]} {[%emt 00:03:12]} gxf6+ {[%clk 00:05:31]}
42. Bxf6 {[%clk 00:08:59]} {[%emt 00:00:01]} Ke8 {[%clk 00:05:40]} 43. Kd6
{[%clk 00:09:01]} {[%emt 00:00:08]} Bf3 {[%clk 00:04:52]} {[%emt 00:00:58]} 44.
Kc7 {[%clk 00:08:11]} {[%emt 00:01:00]} Be2 {[%clk 00:03:32]} {[%emt 00:01:30]}
45. Kb6 {[%clk 00:07:43]} {[%emt 00:00:38]} Kd7 {[%clk 00:03:40]} {[%emt
00:00:02]} 46. Kxa6 {[%clk 00:07:52]} {[%emt 00:00:02]} Kc6 {[%clk 00:03:49]}
{[%emt 00:00:01]} 47. Ka5 {[%clk 00:07:59]} {[%emt 00:00:02]} Bd1 {[%clk
00:03:55]} {[%emt 00:00:04]} 48. Bd4 {[%clk 00:08:08]} {[%emt 00:00:02]} Bf3
{[%clk 00:03:09]} {[%emt 00:00:55]} 49. a4 {[%clk 00:08:11]} {[%emt 00:00:08]}
bxa4 {[%clk 00:02:41]} {[%emt 00:00:37]} 50. b5+ {[%clk 00:08:19]} {[%emt
00:00:02]} Kd5 {[%clk 00:02:37]} {[%emt 00:00:14]} 51. Kxa4 {[%clk 00:08:28]}
{[%emt 00:00:02]} Be2 {[%clk 00:02:26]} {[%emt 00:00:21]} 52. Kb4 {[%clk
00:08:16]} {[%emt 00:00:22]} Bd1 {[%clk 00:02:19]} {[%emt 00:00:15]} 53. Bf2
{[%clk 00:07:31]} {[%emt 00:00:55]} Be2 {[%clk 00:02:18]} {[%emt 00:00:12]} 54.
Be1 {[%clk 00:07:38]} {[%emt 00:00:03]} Kd6 {[%clk 00:01:00]} {[%emt 00:01:29]}
55. c4 {[%clk 00:07:44]} {[%emt 00:00:03]} Bg4 {[%clk 00:00:57]} {[%emt
00:00:14]} 56. Bg3+ {[%clk 00:07:48]} {[%emt 00:00:06]} Ke6 {[%clk 00:01:05]}
57. Ka5 {[%clk 00:07:26]} {[%emt 00:00:32]} Be2 {[%clk 00:00:55]} {[%emt
00:00:21]} 58. b6 {[%clk 00:07:21]} {[%emt 00:00:15]} Bf3 {[%clk 00:01:02]}
{[%emt 00:00:03]} 59. Ka6 {[%clk 00:07:30]} {[%emt 00:00:01]} 1-0